bitfinex-derivatives/quotes_BTCF0:USTF0_20250429
["timestamp","ask_amount","ask_price","bid_price","bid_amount"]
[1745889335471,0.82796707,94936.0,94922.0,0.00158024]
[1745889335669,0.1895939,94916.0,94915.0,0.41956325]
[1745889335879,0.5503939,94916.0,94915.0,0.41956325]
[1745889336069,0.6348739,94916.0,94915.0,0.41956325]
[1745889336478,0.6348739,94916.0,94915.0,0.42744459]
[1745889336684,1.46284097,94916.0,94915.0,0.41956325]
[1745889336976,1.56819697,94916.0,94915.0,0.41956325]
[1745889337570,0.1896099,94908.0,94907.0,0.26619103]
[1745889337776,0.5504099,94908.0,94907.0,0.26619103]
[1745889337972,1.37837697,94908.0,94907.0,0.26619103]
[1745889338175,1.37837697,94908.0,94907.0,0.27619103]
[1745889338673,1.37837697,94908.0,94907.0,0.46580293]
[1745889338674,0.5504099,94908.0,94907.0,0.46580293]
[1745889338876,0.45132,94908.0,94907.0,0.46580293]
[1745889339474,0.6409299,94908.0,94907.0,0.46580293]
[1745889339669,0.45632,94908.0,94907.0,0.46580293]
[1745889340076,0.6409299,94908.0,94907.0,0.46580293]
[1745889340268,0.5544099,94908.0,94907.0,0.46580293]
[1745889340470,0.6459299,94908.0,94907.0,0.46580293]
[1745889341078,0.6389299,94908.0,94907.0,0.46580293]
[1745889341378,0.6419299,94908.0,94907.0,0.46580293]
[1745889341975,0.6399299,94908.0,94907.0,0.46580293]
[1745889342176,0.005,94908.0,94907.0,1.34799692]
[1745889342374,0.3608,94926.0,94925.0,0.1895759]
[1745889342588,0.3608,94926.0,94925.0,0.4249199]
[1745889342880,0.3608,94926.0,94925.0,1.2016499]
[1745889343583,0.3688,94926.0,94925.0,1.2016499]
[1745889343983,0.3688,94926.0,94925.0,0.6749199]
[1745889344187,0.3748,94926.0,94925.0,0.6749199]
[1745889344384,0.3748,94926.0,94925.0,0.69054978]
[1745889345073,0.3748,94926.0,94925.0,0.44054978]
[1745889345279,0.3748,94926.0,94925.0,0.4249199]
[1745889347086,0.3748,94926.0,94925.0,0.44051054]
[1745889347273,0.3748,94926.0,94925.0,0.4249199]
[1745889350088,0.3748,94926.0,94925.0,0.44034]
[1745889350673,0.5643739,94926.0,94925.0,0.1454201]
[1745889350873,0.5563739,94926.0,94925.0,0.125]
[1745889351081,1.38534097,94926.0,94925.0,0.125]
[1745889351279,0.0473997,94914.0,94900.0,0.11285211]
[1745889351479,0.1896219,94902.0,94901.0,0.01559766]
[1745889351681,0.1896219,94902.0,94901.0,0.14559766]
[1745889351985,0.1896219,94902.0,94901.0,0.33521996]
[1745889352781,0.1906219,94902.0,94901.0,0.33621996]
[1745889353085,0.001,94902.0,94901.0,0.3206223]
[1745889353294,0.001,94902.0,94901.0,0.33611687]
[1745889353679,0.1906219,94902.0,94901.0,0.14649457]
[1745889354381,0.1906219,94902.0,94901.0,0.131]
[1745889354891,0.1926219,94902.0,94901.0,0.132]
[1745889355280,0.1926219,94902.0,94901.0,0.3216239]
[1745889355589,0.2763819,94902.0,94901.0,0.3216239]
[1745889357487,0.2763819,94902.0,94901.0,0.132]
[1745889357681,0.2763819,94902.0,94901.0,0.3216239]
[1745889357876,0.2763819,94902.0,94901.0,0.132]
[1745889359790,0.2763819,94902.0,94901.0,0.3216239]
[1745889360894,0.1926219,94902.0,94901.0,0.3216239]
[1745889361081,0.08676,94902.0,94901.0,0.3216239]
[1745889361492,0.2763819,94902.0,94901.0,0.3216239]
[1745889361884,0.2763819,94902.0,94901.0,0.18352503]
[1745889363293,0.2763819,94902.0,94901.0,0.05]
[1745889364995,0.2763819,94902.0,94901.0,0.2396239]
[1745889365385,0.2763819,94902.0,94901.0,0.05]
[1745889366188,0.2763819,94902.0,94901.0,0.2396239]
[1745889366387,0.2763819,94902.0,94901.0,0.05]
[1745889367284,0.2763819,94902.0,94901.0,0.06567279]
[1745889367592,0.2763819,94902.0,94901.0,0.25529669]
[1745889369895,0.1926219,94902.0,94901.0,0.25529669]
[1745889370085,0.2763819,94902.0,94901.0,0.25529669]
[1745889370289,0.35631813,94902.0,94901.0,0.25529669]
[1745889371088,0.27255813,94902.0,94901.0,0.25529669]
[1745889371387,0.35631813,94902.0,94901.0,0.25529669]
[1745889371590,1.01760097,94896.0,94895.0,9e-08]
[1745889371788,0.1896938,94866.0,94855.0,0.0474288]
[1745889371989,0.6342538,94866.0,94865.0,0.16105412]
[1745889372300,0.1897198,94853.0,94846.0,0.22]
[1745889372600,1.46224687,94853.0,94852.0,0.0215814]
[1745889373696,1.37848687,94853.0,94852.0,0.0215814]
[1745889373886,1.46224687,94853.0,94852.0,0.0215814]
[1745889374093,1.83504687,94853.0,94852.0,0.0215814]
[1745889374286,1.83604687,94853.0,94852.0,0.0235814]
[1745889374497,1.83704687,94853.0,94852.0,0.0245814]
[1745889374795,1.83704687,94853.0,94852.0,0.03248489]
[1745889374996,1.75328687,94853.0,94852.0,0.03248489]
[1745889375199,0.6342,94853.0,94852.0,0.36220669]
[1745889375501,0.0858,94853.0,94852.0,0.33220669]
[1745889375688,0.0858,94853.0,94852.0,0.33120669]
[1745889376092,0.0858,94853.0,94852.0,0.68940669]
[1745889376286,0.2755198,94853.0,94852.0,0.68940669]
[1745889376495,1.29108687,94853.0,94852.0,0.14148489]
[1745889376892,1.47368687,94853.0,94852.0,0.14148489]
[1745889379195,1.38988687,94853.0,94852.0,0.33120669]
[1745889379402,0.6363198,94853.0,94852.0,0.14148489]
[1745889379597,0.6363198,94853.0,94852.0,0.33120669]
[1745889379795,0.6343198,94853.0,94852.0,0.33020669]
[1745889380101,0.6383198,94853.0,94852.0,0.33020669]
[1745889380302,0.6383198,94853.0,94852.0,0.71280669]
[1745889380792,0.6393198,94853.0,94852.0,0.71280669]
[1745889382211,0.6393198,94853.0,94852.0,0.52308489]
[1745889382404,0.3658,94853.0,94852.0,0.71280669]
[1745889382603,0.005,94853.0,94852.0,0.81823469]
[1745889382802,0.005,94853.0,94852.0,1.59536469]
[1745889383108,0.00462823,94853.0,94852.0,0.81823469]
[1745889383809,0.08132,94874.0,94871.0,0.1896838]
[1745889384000,0.08132,94874.0,94871.0,0.6804838]
[1745889384201,0.08132,94880.0,94871.0,0.6804838]
[1745889384900,0.08132,94880.0,94871.0,1.0352838]
[1745889385103,0.08062267,94872.0,94871.0,1.0352838]
[1745889385701,0.08662267,94872.0,94871.0,1.0362838]
[1745889386203,0.007,94872.0,94871.0,1.0362838]
[1745889386403,0.001,94872.0,94871.0,1.0362838]
[1745889386899,0.08132,94893.0,94887.0,0.1896519]
[1745889387212,0.1896388,94894.0,94893.0,0.1896399]
[1745889387402,0.1896388,94894.0,94893.0,0.3196399]
[1745889387700,0.08232,94896.0,94895.0,0.1896359]
[1745889387901,0.08232,94896.0,94895.0,0.3296359]
[1745889388301,0.08232,94896.0,94895.0,0.5127359]
[1745889388995,0.001,94896.0,94895.0,0.5127359]
[1745889389394,0.002,94896.0,94895.0,0.5127359]
[1745889389793,0.002,94896.0,94895.0,0.5137359]
[1745889389794,0.003,94896.0,94895.0,0.5137359]
[1745889390197,0.1892,94903.0,94902.0,0.1896219]
[1745889390404,0.16094267,94923.0,94905.0,0.1896159]
[1745889390708,0.5503893,94921.0,94920.0,0.1895859]
[1745889390902,0.5503893,94921.0,94920.0,0.3195859]
[1745889391700,0.9055893,94921.0,94920.0,0.3195859]
[1745889392208,0.9095893,94921.0,94920.0,0.3205859]
[1745889392796,0.7301893,94921.0,94920.0,0.3205859]
[1745889393108,0.7341893,94921.0,94920.0,0.3215859]
[1745889393309,0.7341893,94921.0,94920.0,0.32954263]
[1745889395504,0.3733893,94921.0,94920.0,0.32954263]
[1745889398015,0.1838,94921.0,94920.0,0.32954263]
[1745889398206,0.008,94921.0,94920.0,0.32954263]
[1745889401015,0.1975839,94921.0,94920.0,0.32954263]
[1745889403016,1.02555097,94921.0,94920.0,0.13995673]
[1745889403611,1.02555097,94921.0,94920.0,0.32954263]
[1745889406113,1.02555097,94921.0,94920.0,0.13995673]
[1745889406313,2.26846297,94921.0,94920.0,1e-07]
[1745889408014,1.74170297,94921.0,94920.0,1e-07]
[1745889408612,1.49170297,94921.0,94920.0,1e-07]
[1745889409919,1.49170297,94921.0,94920.0,0.1300001]
[1745889409920,1.46763097,94921.0,94920.0,0.1300001]
[1745889410420,1.46763097,94921.0,94920.0,0.319586]
[1745889410719,1.46763097,94921.0,94920.0,0.319546]
[1745889411215,1.46763097,94921.0,94920.0,0.1299601]
[1745889411408,0.1895899,94918.0,94917.0,0.00773834]
[1745889411602,0.1896059,94910.0,94909.0,0.1896073]
[1745889411810,0.1896059,94910.0,94909.0,0.3396073]
[1745889412113,1.01757297,94910.0,94909.0,0.3396073]
[1745889412514,1.37607297,94910.0,94909.0,0.3396073]
[1745889412918,1.37807297,94910.0,94909.0,0.34851757]
[1745889414316,1.37607297,94910.0,94909.0,0.34751757]
[1745889414518,1.37807297,94910.0,94909.0,0.34851757]
[1745889414718,1.38007297,94910.0,94909.0,0.34951757]
[1745889414914,1.37807297,94910.0,94909.0,0.34851757]
[1745889415113,1.37907297,94910.0,94909.0,0.34851757]
[1745889415421,1.37707297,94910.0,94909.0,0.34751757]
[1745889415722,1.37807297,94910.0,94909.0,0.34751757]
[1745889416021,1.37707297,94910.0,94909.0,0.34751757]
[1745889416212,1.37907297,94910.0,94909.0,0.34851757]
[1745889417019,0.003,94910.0,94909.0,0.34851757]
[1745889417220,0.002,94910.0,94909.0,0.53221757]
[1745889417422,0.005,94910.0,94909.0,0.71001757]
[1745889417722,0.004,94910.0,94909.0,0.70901757]
[1745889418227,0.443515,94916.0,94915.0,0.1895959]
[1745889418415,0.267715,94916.0,94915.0,0.3495959]
[1745889418816,0.2677139,94916.0,94915.0,0.3495959]
[1745889419016,0.2677139,94916.0,94915.0,0.7070959]
[1745889419420,0.2707139,94916.0,94915.0,0.7080959]
[1745889420123,0.08112,94916.0,94915.0,0.7080959]
[1745889420926,0.08412,94916.0,94915.0,0.7090959]
[1745889422827,0.08412,94916.0,94915.0,1.1752519]
[1745889423724,0.08412,94916.0,94915.0,1.19840709]
[1745889424126,0.08412,94916.0,94915.0,1.09305109]
[1745889425232,0.08412,94916.0,94915.0,1.0698959]
[1745889425824,0.006,94916.0,94915.0,1.0698959]
[1745889429642,0.1714,94923.0,94922.0,0.1895819]
[1745889429937,0.1714,94923.0,94922.0,0.3495819]
[1745889430830,0.1714,94923.0,94922.0,0.7190819]
[1745889431139,0.1754,94923.0,94922.0,0.7200819]
[1745889431339,0.1804,94923.0,94922.0,0.7210819]
[1745889432031,0.1764,94923.0,94922.0,0.7200819]
[1745889432239,0.1794,94923.0,94922.0,0.7210819]
[1745889433029,0.1754,94923.0,94922.0,0.7200819]
[1745889436955,0.1754,94923.0,94922.0,0.3505819]
[1745889437254,1.01757297,94910.0,94909.0,7e-08]
[1745889437454,0.1896499,94888.0,94881.0,0.3687]
[1745889437645,1.37841697,94888.0,94887.0,0.37489924]
[1745889437952,1.37841697,94888.0,94887.0,0.38279961]
[1745889438255,1.37841697,94888.0,94887.0,0.14504971]
[1745889438444,1.73151697,94888.0,94887.0,0.14504971]
[1745889438749,1.73251697,94888.0,94887.0,0.15004971]
[1745889439249,0.1896738,94876.0,94853.0,0.0474295]
[1745889439453,1.45656087,94876.0,94863.0,0.1896991]
[1745889439652,1.45656087,94876.0,94875.0,0.41541471]
[1745889440150,1.45656087,94876.0,94875.0,0.14782743]
[1745889441048,1.45756087,94876.0,94875.0,0.14782743]
[1745889441251,1.45756087,94876.0,94875.0,0.33750323]
[1745889441553,1.45856087,94876.0,94875.0,0.14782743]
[1745889442344,1.45856087,94876.0,94875.0,0.33750323]
[1745889442556,1.38044087,94876.0,94875.0,0.14782743]
[1745889442851,1.45856087,94876.0,94875.0,0.33750323]
[1745889443053,1.63686087,94876.0,94875.0,0.14782743]
[1745889443550,1.63686087,94876.0,94875.0,0.33750323]
[1745889445344,1.63686087,94876.0,94875.0,0.14782743]
[1745889449955,1.63686087,94876.0,94875.0,0.33750323]
[1745889450469,1.55874087,94876.0,94875.0,0.14782743]
[1745889450653,1.63494087,94876.0,94875.0,0.33750323]
[1745889451463,1.55874087,94876.0,94875.0,0.33750323]
[1745889451662,1.63494087,94876.0,94875.0,0.33750323]
[1745889452667,0.8069738,94876.0,94875.0,0.33750323]
[1745889453063,0.7307738,94876.0,94875.0,0.52250323]
[1745889453261,0.8069738,94876.0,94875.0,0.52250323]
[1745889453758,0.002,94876.0,94875.0,0.52250323]
[1745889454064,0.002,94876.0,94875.0,0.70110323]
[1745889454564,0.001,94876.0,94875.0,0.70110323]
[1745889454766,0.002,94876.0,94875.0,0.70110323]
[1745889455158,0.002,94876.0,94875.0,0.51142743]
[1745889455361,0.1916738,94876.0,94875.0,0.51142743]
[1745889455571,0.1916738,94876.0,94875.0,0.70110323]
[1745889455864,0.0762,94881.0,94880.0,0.1896658]
[1745889456055,0.0762,94883.0,94882.0,0.0474151]
[1745889456256,0.1753,94894.0,94882.0,0.5008]
[1745889456460,0.82796707,94892.0,94891.0,0.1896439]
[1745889456766,0.0762,94893.0,94891.0,0.1896439]
[1745889456767,0.0762,94893.0,94892.0,0.1896419]
[1745889456953,0.0762,94893.0,94892.0,0.6785419]
[1745889457153,0.1842,94897.0,94893.0,0.0474096]
[1745889457354,0.0762,94898.0,94897.0,0.1896319]
[1745889457554,0.0762,94898.0,94897.0,0.3296319]
[1745889458951,0.2668299,94898.0,94897.0,0.3326319]
[1745889459352,0.0772,94898.0,94897.0,0.3326319]
[1745889459961,0.2668299,94898.0,94897.0,0.3346319]
[1745889460156,1.09479697,94898.0,94897.0,0.3346319]
[1745889460356,1.09479697,94898.0,94897.0,0.145]
[1745889460557,1.09479697,94898.0,94897.0,0.143]
[1745889460760,1.26189697,94898.0,94897.0,0.145]
[1745889460964,1.26189697,94898.0,94897.0,0.3346319]
[1745889461264,1.18569697,94898.0,94897.0,0.3346319]
[1745889461454,1.26189697,94898.0,94897.0,0.3346319]
[1745889461762,1.26089697,94898.0,94897.0,0.3326319]
[1745889462164,1.26089697,94898.0,94897.0,0.143]
[1745889462759,1.26089697,94898.0,94897.0,0.142]
[1745889463361,1.26189697,94898.0,94897.0,0.143]
[1745889463663,1.26289697,94898.0,94897.0,0.142]
[1745889464265,0.2370691,94887.0,94884.0,0.1742]
[1745889464459,0.5504558,94886.0,94885.0,0.0474138]
[1745889464661,0.7287558,94886.0,94885.0,0.3570696]
[1745889464869,1.55672287,94886.0,94885.0,0.3570696]
[1745889466873,1.55672287,94886.0,94885.0,0.3590696]
[1745889467076,1.55672287,94886.0,94885.0,0.5252696]
[1745889467270,1.55772287,94886.0,94885.0,0.5272696]
[1745889467571,1.36806707,94886.0,94885.0,0.5272696]
[1745889467766,0.3618,94886.0,94885.0,0.5272696]
[1745889467967,0.001,94886.0,94885.0,0.5272696]
[1745889468167,0.0762,94908.0,94904.0,0.1896179]
[1745889468468,0.1896152,94906.0,94904.0,0.3496179]
[1745889468672,0.1911159,94905.0,94904.0,0.3496179]
[1745889469263,0.1911159,94905.0,94904.0,0.7080179]
[1745889470371,0.1911159,94905.0,94904.0,0.5214]
[1745889470670,1.02008297,94905.0,94904.0,0.166]
[1745889470981,1.90920097,94905.0,94904.0,0.006]
[1745889471273,0.1896738,94876.0,94868.0,0.1673]
[1745889471474,0.5504738,94876.0,94875.0,0.1]
[1745889471669,0.5504738,94876.0,94875.0,0.2896758]
[1745889473676,0.6266738,94876.0,94875.0,0.48020368]
[1745889473867,0.6276738,94876.0,94875.0,0.48120368]
[1745889474376,0.6276738,94876.0,94875.0,0.48020368]
[1745889474676,0.6286738,94876.0,94875.0,0.48220368]
[1745889474865,0.6276738,94876.0,94875.0,0.48020368]
[1745889475065,0.6286738,94876.0,94875.0,0.48120368]
[1745889475573,0.6286738,94876.0,94875.0,0.29840368]
[1745889476471,0.6276738,94876.0,94875.0,0.29840368]
[1745889476974,0.6276738,94876.0,94875.0,0.46760368]
[1745889477177,0.2668738,94876.0,94875.0,0.46860368]
[1745889477680,0.2668738,94876.0,94875.0,0.46960368]
[1745889477867,0.2668738,94876.0,94875.0,0.46860368]
[1745889478174,0.2658738,94876.0,94875.0,0.11072788]
[1745889478378,0.6345738,94876.0,94875.0,0.11072788]
[1745889478581,0.6345738,94876.0,94875.0,8e-08]
[1745889478582,1.58796738,94876.0,94875.0,8e-08]
[1745889478879,0.1896938,94866.0,94860.0,0.00158085]
[1745889479073,1.38536087,94866.0,94860.0,0.00158085]
[1745889479379,1.49077287,94866.0,94860.0,0.00158085]
[1745889479579,1.49077287,94866.0,94865.0,0.00883586]
[1745889479777,1.49077287,94866.0,94865.0,0.00105412]
[1745889480370,1.49077287,94866.0,94865.0,0.00205412]
[1745889480572,1.56513287,94866.0,94865.0,0.00205412]
[1745889481278,1.56613287,94866.0,94865.0,0.00305412]
[1745889481885,0.1897198,94853.0,94835.0,0.00105446]
[1745889482187,1.37848687,94853.0,94852.0,0.0415814]
[1745889482886,1.38538687,94853.0,94852.0,0.0415814]
[1745889483084,1.38538687,94853.0,94852.0,0.0425814]
[1745889483491,1.70408687,94853.0,94852.0,0.0425814]
[1745889483876,1.70508687,94853.0,94852.0,0.0425814]
[1745889484683,1.70508687,94853.0,94852.0,0.05056551]
[1745889487278,1.77944687,94853.0,94852.0,0.05056551]
[1745889488089,1.01772087,94836.0,94835.0,6e-08]
[1745889488388,1.82058087,94836.0,94835.0,6e-08]
[1745889488585,1.92602488,94836.0,94835.0,6e-08]
[1745889489088,2.23842488,94836.0,94835.0,6e-08]
[1745889489384,2.23942488,94836.0,94835.0,0.00300006]
[1745889489991,2.23842488,94836.0,94835.0,6e-08]
[1745889490288,2.24142488,94836.0,94835.0,0.00100006]
[1745889490688,2.24342488,94836.0,94835.0,0.00100006]
[1745889491594,2.65652488,94836.0,94835.0,0.00100006]
[1745889491788,2.65656488,94836.0,94835.0,0.00100006]
[1745889491991,2.67675328,94836.0,94835.0,0.00100006]
[1745889492186,0.3608,94816.0,94782.0,0.00158257]
[1745889492493,0.189874,94776.0,94775.0,0.00105513]
[1745889492683,0.93774555,94776.0,94775.0,0.00877929]
[1745889492885,1.04325756,94776.0,94775.0,0.00105513]
[1745889493790,1.04325756,94776.0,94775.0,0.00205513]
[1745889493981,1.04425756,94776.0,94775.0,0.00205513]
[1745889494188,1.04525756,94776.0,94775.0,0.00505513]
[1745889494889,0.273174,94776.0,94775.0,0.00505513]
[1745889495391,0.273174,94776.0,94775.0,0.01505513]
[1745889496289,1.04525756,94776.0,94775.0,0.01505513]
[1745889496691,1.04525756,94776.0,94775.0,0.00505513]
[1745889497288,0.273174,94776.0,94775.0,0.32493113]
[1745889497482,0.198774,94776.0,94775.0,0.32493113]
[1745889497689,0.273174,94776.0,94775.0,0.13505513]
[1745889497890,0.273174,94776.0,94775.0,0.28915513]
[1745889498291,0.3608,94790.0,94789.0,0.1898479]
[1745889498500,0.2372963,94798.0,94797.0,0.1898299]
[1745889498689,0.2372963,94798.0,94797.0,0.3198299]
[1745889500091,0.2392963,94798.0,94797.0,0.3198299]
[1745889500482,0.2412963,94798.0,94797.0,0.3198299]
[1745889501094,0.2412963,94798.0,94797.0,0.13]
[1745889501485,0.2412963,94798.0,94797.0,0.3198319]
[1745889503091,0.004,94798.0,94797.0,0.6753199]
[1745889503287,0.0015,94800.0,94799.0,0.1898279]
[1745889503595,0.3608,94823.0,94808.0,0.0474521]
[1745889503789,0.0744,94830.0,94808.0,0.0474521]
[1745889503790,0.0744,94830.0,94829.0,0.1897678]
[1745889503986,0.0744,94830.0,94829.0,0.3297678]
[1745889504689,0.26956669,94833.0,94832.0,0.1897618]
[1745889504890,0.26956669,94833.0,94832.0,0.3397618]
[1745889505492,0.1897598,94833.0,94832.0,0.3397618]
[1745889505889,0.1927598,94833.0,94832.0,0.3407618]
[1745889506287,0.1947598,94833.0,94832.0,0.3417618]
[1745889508393,0.1947598,94833.0,94832.0,0.3497791]
[1745889511689,0.1947598,94833.0,94832.0,0.1600173]
[1745889511889,0.86133135,94833.0,94832.0,0.1500173]
[1745889512591,1.19023135,94833.0,94832.0,0.1500173]
[1745889513199,1.02793135,94833.0,94832.0,0.1500173]
[1745889513387,0.1947598,94833.0,94832.0,0.1500173]
[1745889513697,0.1947598,94833.0,94832.0,0.3397791]
[1745889514492,0.1947598,94833.0,94832.0,0.5115791]
[1745889515902,0.0015,94835.0,94834.0,0.1897578]
[1745889516104,0.0015,94835.0,94834.0,0.3397578]
[1745889516290,0.0015,94835.0,94834.0,0.7831058]
[1745889517097,0.0055,94835.0,94834.0,0.6786578]
[1745889518108,0.1952558,94835.0,94834.0,0.4889]
[1745889518299,0.86182735,94835.0,94834.0,0.4889]
[1745889518496,1.18402735,94835.0,94834.0,0.3238]
[1745889519407,1.18402735,94835.0,94834.0,0.5135578]
[1745889520009,1.18402735,94835.0,94834.0,0.3238]
[1745889521099,1.18402735,94835.0,94834.0,0.5135578]
[1745889521693,1.18402735,94835.0,94834.0,0.3238]
[1745889522294,1.18402735,94835.0,94834.0,0.5135578]
[1745889524809,0.93846735,94835.0,94834.0,0.5135578]
[1745889525005,0.86382735,94835.0,94834.0,0.5135578]
[1745889525201,0.93846735,94835.0,94834.0,0.5135578]
[1745889525401,1.09806735,94835.0,94834.0,0.5135578]
[1745889526705,0.0075,94835.0,94834.0,0.5135578]
[1745889526902,0.0075,94835.0,94834.0,0.8743578]
[1745889528313,0.1972558,94835.0,94834.0,0.8743578]
[1745889530509,0.0075,94835.0,94834.0,0.8743578]
[1745889530913,0.1897517,94838.0,94834.0,0.8743578]
[1745889530914,0.0474295,94854.0,94836.0,0.047438]
[1745889531109,0.0474264,94860.0,94848.0,0.1897298]
[1745889531110,0.90937155,94849.0,94848.0,0.1897298]
[1745889531415,0.90937155,94849.0,94848.0,0.3497298]
[1745889531416,0.2428,94849.0,94848.0,0.3497298]
[1745889531914,0.4325278,94849.0,94848.0,0.3497298]
[1745889532307,0.4375278,94849.0,94848.0,0.3507298]
[1745889532906,0.3629278,94849.0,94848.0,0.3507298]
[1745889533108,0.3689278,94849.0,94848.0,0.3517298]
[1745889534416,0.1792,94849.0,94848.0,0.3517298]
[1745889534608,0.011,94849.0,94848.0,0.3517298]
[1745889535214,0.1688,94849.0,94848.0,0.3517298]
[1745889536317,0.1688,94849.0,94848.0,0.4561618]
[1745889536318,0.006,94849.0,94848.0,0.4561618]
[1745889536514,0.02191989,94852.0,94851.0,0.1897238]
[1745889536813,0.0015,94870.0,94865.0,0.1896958]
[1745889537016,0.0015,94870.0,94865.0,0.7004958]
[1745889539315,0.002,94866.0,94865.0,0.7004958]
[1745889539715,0.0015,94870.0,94869.0,0.1896878]
[1745889539902,0.0015,94870.0,94869.0,0.3396878]
[1745889540108,0.1666,94882.0,94881.0,0.1896638]
[1745889540312,0.1666,94882.0,94881.0,0.3396638]
[1745889540620,0.07356,94885.0,94884.0,0.1896578]
[1745889540820,0.07356,94885.0,94884.0,0.3296578]
[1745889541011,0.92978735,94885.0,94884.0,0.3296578]
[1745889541412,0.74013155,94885.0,94884.0,0.6584578]
[1745889541813,0.74313155,94885.0,94884.0,0.6584578]
[1745889542217,0.07656,94885.0,94884.0,1.0192578]
[1745889543517,0.07856,94885.0,94884.0,1.0192578]
[1745889543918,0.07756,94885.0,94884.0,1.0192578]
[1745889545420,0.07756,94885.0,94884.0,1.02707994]
[1745889545822,0.004,94885.0,94884.0,1.02707994]
[1745889546022,0.86022735,94885.0,94884.0,0.50862214]
[1745889547827,0.86022735,94885.0,94884.0,0.69827994]
[1745889552130,0.004,94885.0,94884.0,0.69827994]
[1745889552314,0.004,94885.0,94884.0,1.02317994]
[1745889552724,0.3544374,94895.0,94894.0,0.1896379]
[1745889552925,0.5171374,94895.0,94894.0,0.3296379]
[1745889553124,1.18370895,94895.0,94894.0,0.3296379]
[1745889554518,1.18470895,94895.0,94894.0,0.3296379]
[1745889559327,0.99507155,94895.0,94894.0,0.3296379]
[1745889559524,1.18470745,94895.0,94894.0,0.3296379]
[1745889559727,0.1658,94895.0,94894.0,0.4980379]
[1745889560031,0.1658,94895.0,94894.0,0.6598379]
[1745889562027,0.3332,94895.0,94894.0,0.6598379]
[1745889563328,1.18940745,94895.0,94894.0,0.14]
[1745889563530,0.1896558,94885.0,94884.0,0.00782214]
[1745889563730,1.21702735,94885.0,94884.0,0.08]
[1745889564331,1.54052735,94885.0,94884.0,0.08]
[1745889564538,1.55845384,94885.0,94884.0,0.08]
[1745889564935,1.55845384,94885.0,94884.0,0.083]
[1745889566443,1.55845384,94885.0,94884.0,0.09390599]
[1745889566743,1.55845384,94885.0,94884.0,0.09290599]
[1745889567044,1.55845384,94885.0,94884.0,0.09190599]
[1745889571350,1.55845384,94885.0,94884.0,0.09390599]
[1745889571539,1.54052735,94885.0,94884.0,0.28356379]
[1745889571736,1.17972735,94885.0,94884.0,0.28356379]
[1745889571935,1.17972735,94885.0,94884.0,0.28256379]
[1745889572131,0.99007155,94885.0,94884.0,0.28256379]
[1745889572332,0.07188,94886.0,94885.0,0.1896558]
[1745889572538,0.1652,94895.0,94894.0,0.1896379]
[1745889572746,0.20476571,94897.0,94895.0,0.1896359]
[1745889572943,0.20476571,94897.0,94895.0,0.3296359]
[1745889573140,0.001,94896.0,94895.0,0.6904359]
[1745889575740,0.07188,94919.0,94911.0,0.0474007]
[1745889576044,0.82817155,94916.0,94915.0,0.1895959]
[1745889576239,0.82817155,94916.0,94915.0,0.3495959]
[1745889576542,0.1616,94916.0,94915.0,0.3495959]
[1745889577257,0.07788,94919.0,94918.0,0.1895899]
[1745889577546,0.07488,94919.0,94918.0,0.3495899]
[1745889578236,0.07188,94919.0,94918.0,0.3495899]
[1745889579753,0.07588,94919.0,94918.0,0.3495899]
[1745889580746,0.004,94919.0,94918.0,0.3495899]
[1745889581550,0.1895827,94922.0,94921.0,0.1895819]
[1745889581740,0.1895827,94922.0,94921.0,0.3495819]
[1745889582349,0.1632,94923.0,94922.0,0.1895819]
[1745889582542,0.1632,94923.0,94922.0,0.3495819]
[1745889582738,0.001,94926.0,94925.0,0.1895759]
[1745889582951,0.001,94926.0,94925.0,0.3495759]
[1745889583855,0.002,94926.0,94925.0,0.3495759]
[1745889584059,0.004,94926.0,94925.0,0.3495759]
[1745889584745,0.1935739,94926.0,94925.0,0.3495759]
[1745889587052,0.189552,94937.0,94936.0,0.189554]
[1745889587249,0.1594,94939.0,94938.0,0.18955]
[1745889587441,0.1594,94939.0,94938.0,0.32955]
[1745889587643,1.01551955,94939.0,94938.0,0.32955]
[1745889588656,0.85611955,94939.0,94938.0,0.32955]
[1745889589761,0.85811955,94939.0,94938.0,0.32955]
[1745889590252,0.86011955,94939.0,94938.0,0.32955]
[1745889590450,0.67057155,94939.0,94938.0,0.32955]
[1745889590650,0.86011955,94939.0,94938.0,0.32955]
[1745889590958,0.86011955,94939.0,94938.0,0.33730473]
[1745889591461,0.67057155,94939.0,94938.0,0.33730473]
[1745889591661,0.86011955,94939.0,94938.0,0.33730473]
[1745889592258,0.86011955,94939.0,94938.0,0.49620473]
[1745889592447,1.01911955,94939.0,94938.0,0.49620473]
[1745889593250,0.82957155,94939.0,94938.0,0.49620473]
[1745889593646,1.01911955,94939.0,94938.0,0.49620473]
[1745889595659,0.82957155,94939.0,94938.0,0.49620473]
[1745889596255,1.01911955,94939.0,94938.0,0.49620473]
[1745889596655,0.004,94939.0,94938.0,0.49620473]
[1745889597758,0.191548,94939.0,94938.0,0.49620473]
[1745889597960,0.002,94939.0,94938.0,0.66540473]
[1745889598560,0.85811955,94939.0,94938.0,0.31695473]
[1745889598759,1.19351955,94939.0,94938.0,0.14775473]
[1745889599859,1.19351955,94939.0,94938.0,0.33730473]
[1745889606560,1.19351955,94939.0,94938.0,0.14775473]
[1745889606754,1.19351955,94939.0,94899.0,0.0474066]
[1745889606755,0.1896279,94900.0,94899.0,0.0474066]
[1745889606956,0.1772815,94900.0,94899.0,0.34115796]
[1745889607152,0.84385305,94900.0,94899.0,0.16795796]
[1745889607464,1.17725305,94900.0,94899.0,0.16795796]
[1745889608059,0.1658,94900.0,94899.0,0.36458586]
[1745889608253,0.001,94900.0,94899.0,0.69218586]
[1745889608871,0.3077251,94912.0,94911.0,0.1896039]
[1745889609061,0.3077251,94912.0,94911.0,0.3396039]
[1745889609260,0.4688251,94912.0,94911.0,0.3396039]
[1745889609668,1.13539665,94912.0,94911.0,0.3396039]
[1745889610451,1.06467665,94912.0,94911.0,0.3396039]
[1745889610660,0.66657155,94912.0,94911.0,0.3396039]
[1745889610962,0.07072,94915.0,94914.0,0.1895979]
[1745889611264,0.2603159,94915.0,94914.0,0.3395979]
[1745889612167,0.07072,94915.0,94914.0,0.3425979]
[1745889612553,0.10686485,94929.0,94921.0,0.0473958]
[1745889612758,0.29643275,94929.0,94928.0,0.1895699]
[1745889612957,0.29643275,94929.0,94928.0,0.3295699]
[1745889613770,0.29643275,94929.0,94928.0,0.6669699]
[1745889614764,0.9630043,94929.0,94928.0,0.3075]
[1745889615454,1.2970043,94929.0,94928.0,0.3075]
[1745889615758,1.2970043,94929.0,94928.0,0.4970699]
[1745889616066,0.9448364,94929.0,94928.0,0.4970699]
[1745889616271,0.83797155,94929.0,94928.0,0.4970699]